[Event "Late-Titled-Tuesday-Blitz-October-24-2023"]
[Site "Chess.com"]
[Date "2023.10.24"]
[Round "4"]
[White "Nf3c5"]
[Black "FabianoCaruana"]
[Result "0-1"]
[WhiteElo "2620"]
[BlackElo "3085"]
[TimeControl "180+1"]
[EndTime "14:38:47 PDT"]
[Termination "FabianoCaruana won on time"]

1. d4 {[%clk 0:03:00.9]} 1... b5 {[%clk 0:02:59.5]} 2. e4 {[%clk 0:02:59.6]}
2... Bb7 {[%clk 0:02:59.7]} 3. Bxb5 {[%clk 0:02:59.8]} 3... Bxe4 {[%clk
0:02:59.7]} 4. Nf3 {[%clk 0:03:00.4]} 4... Nf6 {[%clk 0:02:59.9]} 5. O-O {[%clk
0:03:00.1]} 5... e6 {[%clk 0:03:00.4]} 6. Re1 {[%clk 0:03:00.1]} 6... Be7 {[%clk
0:03:00.3]} 7. c4 {[%clk 0:03:00]} 7... O-O {[%clk 0:03:00]} 8. Nc3 {[%clk
0:03:00.3]} 8... Bxf3 {[%clk 0:03:00.4]} 9. Qxf3 {[%clk 0:02:58.9]} 9... c6
{[%clk 0:03:01.1]} 10. Ba4 {[%clk 0:02:58.9]} 10... d5 {[%clk 0:02:56.1]} 11.
Bf4 {[%clk 0:02:45.7]} 11... a5 {[%clk 0:02:55.9]} 12. c5 {[%clk 0:02:31.9]}
12... Qc8 {[%clk 0:02:53.2]} 13. Bc2 {[%clk 0:02:27.3]} 13... Na6 {[%clk
0:02:52.9]} 14. a3 {[%clk 0:02:26]} 14... g6 {[%clk 0:02:44.9]} 15. Bh6 {[%clk
0:02:09.5]} 15... Re8 {[%clk 0:02:44.3]} 16. Re3 {[%clk 0:02:05.8]} 16... Nc7
{[%clk 0:02:39.6]} 17. Na4 {[%clk 0:01:55.5]} 17... Nd7 {[%clk 0:02:36.9]} 18.
Qf4 {[%clk 0:01:45]} 18... Bf8 {[%clk 0:02:12.7]} 19. Rae1 {[%clk 0:01:30.5]}
19... Rb8 {[%clk 0:02:09]} 20. h4 {[%clk 0:01:29.6]} 20... Qd8 {[%clk
0:02:02.1]} 21. Rf3 {[%clk 0:01:17.1]} 21... Bxh6 {[%clk 0:01:57.1]} 22. Qxh6
{[%clk 0:01:16.8]} 22... f5 {[%clk 0:01:38.8]} 23. Rg3 {[%clk 0:01:01.5]} 23...
Qf6 {[%clk 0:01:36.6]} 24. h5 {[%clk 0:00:51.8]} 24... Nf8 {[%clk 0:01:36.2]}
25. Re5 {[%clk 0:00:40.2]} 25... Re7 {[%clk 0:01:31.4]} 26. Nb6 {[%clk
0:00:39.5]} 26... Rg7 {[%clk 0:01:28]} 27. hxg6 {[%clk 0:00:34.3]} 27... Nxg6
{[%clk 0:01:28.9]} 28. Re1 {[%clk 0:00:30]} 28... Qxd4 {[%clk 0:01:26.6]} 29.
Na4 {[%clk 0:00:11]} 29... Rf8 {[%clk 0:01:20.2]} 30. Re2 {[%clk 0:00:06.3]}
30... e5 {[%clk 0:01:17.4]} 31. Re1 {[%clk 0:00:03.1]} 31... e4 {[%clk 0:01:17]}
32. Rg5 {[%clk 0:00:02.8]} 32... Ne6 {[%clk 0:01:16.4]} 33. Rh5 {[%clk
0:00:02.8]} 33... Nef4 {[%clk 0:01:08.6]} 34. Rh2 {[%clk 0:00:02]} 34... Qd2
{[%clk 0:01:09.2]} 0-1

[Event "Late-Titled-Tuesday-Blitz-October-24-2023"]
[Site "Chess.com"]
[Date "2023.10.24"]
[Round "4"]
[White "HajiyevKanan"]
[Black "bylavochka"]
[Result "0-1"]
[WhiteElo "2497"]
[BlackElo "2359"]
[TimeControl "180+1"]
[EndTime "14:38:59 PDT"]
[Termination "bylavochka won by checkmate"]

1. d4 {[%clk 0:03:00.9]} 1... Nf6 {[%clk 0:02:57.6]} 2. Nf3 {[%clk 0:03:01.8]}
2... g6 {[%clk 0:02:56.7]} 3. g3 {[%clk 0:03:01.8]} 3... Bg7 {[%clk 0:02:57.1]}
4. Bg2 {[%clk 0:03:02.6]} 4... O-O {[%clk 0:02:57.5]} 5. O-O {[%clk 0:03:03.4]}
5... d5 {[%clk 0:02:58]} 6. b3 {[%clk 0:03:04.1]} 6... a5 {[%clk 0:02:53.8]} 7.
Bb2 {[%clk 0:03:05]} 7... a4 {[%clk 0:02:53.6]} 8. c4 {[%clk 0:03:05.5]} 8...
axb3 {[%clk 0:02:51.9]} 9. axb3 {[%clk 0:03:06.4]} 9... Rxa1 {[%clk 0:02:51.9]}
10. Bxa1 {[%clk 0:03:07.3]} 10... c6 {[%clk 0:02:47.9]} 11. Nc3 {[%clk
0:03:05.1]} 11... Ne4 {[%clk 0:02:39.6]} 12. Nxe4 {[%clk 0:03:00.7]} 12... dxe4
{[%clk 0:02:39.2]} 13. Ne5 {[%clk 0:02:57.1]} 13... f6 {[%clk 0:02:15.5]} 14.
Nxg6 {[%clk 0:02:39.4]} 14... hxg6 {[%clk 0:02:14]} 15. Bxe4 {[%clk 0:02:40.3]}
15... f5 {[%clk 0:01:55.2]} 16. Bc2 {[%clk 0:02:37.4]} 16... Nd7 {[%clk
0:01:51.2]} 17. e4 {[%clk 0:02:36.4]} 17... Nf6 {[%clk 0:01:35]} 18. e5 {[%clk
0:02:35.3]} 18... Ne8 {[%clk 0:00:55.5]} 19. f4 {[%clk 0:02:18.5]} 19... Nc7
{[%clk 0:00:53.7]} 20. h4 {[%clk 0:02:17.6]} 20... Be6 {[%clk 0:00:47.2]} 21.
Kg2 {[%clk 0:02:11.5]} 21... b5 {[%clk 0:00:44]} 22. h5 {[%clk 0:02:02.2]} 22...
gxh5 {[%clk 0:00:33.2]} 23. Qxh5 {[%clk 0:02:02.2]} 23... Qe8 {[%clk 0:00:32.9]}
24. Qg5 {[%clk 0:01:59.7]} 24... bxc4 {[%clk 0:00:25.5]} 25. bxc4 {[%clk
0:01:56.7]} 25... Bxc4 {[%clk 0:00:21]} 26. Rc1 {[%clk 0:01:44]} 26... Bd5+
{[%clk 0:00:20.5]} 27. Kf2 {[%clk 0:01:44.7]} 27... e6 {[%clk 0:00:15.6]} 28. g4
{[%clk 0:01:45.1]} 28... fxg4 {[%clk 0:00:12.1]} 29. Kg3 {[%clk 0:01:37.3]}
29... Nb5 {[%clk 0:00:09.3]} 30. Bg6 {[%clk 0:01:37.3]} 30... Qa8 {[%clk
0:00:04.6]} 31. Qh5 {[%clk 0:01:35.6]} 31... Rd8 {[%clk 0:00:02.3]} 32. f5
{[%clk 0:01:18.2]} 32... Qa3+ {[%clk 0:00:02.1]} 33. Rc3 {[%clk 0:01:11.9]}
33... Nxc3 {[%clk 0:00:02.6]} 34. Bf7+ {[%clk 0:01:09.2]} 34... Kf8 {[%clk
0:00:03]} 35. f6 {[%clk 0:01:00.9]} 35... Ne4+ {[%clk 0:00:03.3]} 36. Kxg4
{[%clk 0:00:56.2]} 36... Qg3# {[%clk 0:00:03.6]} 0-1

[Event "Late-Titled-Tuesday-Blitz-October-24-2023"]
[Site "Chess.com"]
[Date "2023.10.24"]
[Round "4"]
[White "2346PL"]
[Black "sari07"]
[Result "1-0"]
[WhiteElo "2482"]
[BlackElo "2264"]
[TimeControl "180+1"]
[EndTime "14:39:01 PDT"]
[Termination "2346PL won on time"]

1. d4 {[%clk 0:03:00.9]} 1... Nf6 {[%clk 0:03:00.1]} 2. Nf3 {[%clk 0:03:00.3]}
2... g6 {[%clk 0:03:00.5]} 3. g3 {[%clk 0:02:59.4]} 3... Bg7 {[%clk 0:03:00.9]}
4. Bg2 {[%clk 0:02:59.8]} 4... O-O {[%clk 0:03:01.4]} 5. O-O {[%clk 0:03:00.2]}
5... d6 {[%clk 0:03:01.8]} 6. b3 {[%clk 0:02:59.7]} 6... e5 {[%clk 0:02:57.7]}
7. dxe5 {[%clk 0:02:57.9]} 7... Ng4 {[%clk 0:02:53]} 8. Bb2 {[%clk 0:02:58.1]}
8... Nc6 {[%clk 0:02:53.5]} 9. Nbd2 {[%clk 0:02:52.7]} 9... Ngxe5 {[%clk
0:02:44.4]} 10. Qc1 {[%clk 0:02:51]} 10... Re8 {[%clk 0:02:27.1]} 11. Nxe5
{[%clk 0:02:46.3]} 11... Nxe5 {[%clk 0:02:19.9]} 12. c4 {[%clk 0:02:46.6]} 12...
Qe7 {[%clk 0:02:11.9]} 13. Nf3 {[%clk 0:02:41.3]} 13... c6 {[%clk 0:02:07.2]}
14. Rd1 {[%clk 0:02:40.5]} 14... Bf5 {[%clk 0:01:59.9]} 15. Nd4 {[%clk
0:02:36.7]} 15... Bd7 {[%clk 0:01:46.4]} 16. Bc3 {[%clk 0:02:35.6]} 16... a5
{[%clk 0:01:41.2]} 17. a4 {[%clk 0:02:32.9]} 17... h5 {[%clk 0:01:23.8]} 18. h4
{[%clk 0:02:31.6]} 18... Ng4 {[%clk 0:01:18.6]} 19. e3 {[%clk 0:02:29.3]} 19...
Bh6 {[%clk 0:01:11.3]} 20. Re1 {[%clk 0:02:21.6]} 20... g5 {[%clk 0:00:59.8]}
21. hxg5 {[%clk 0:02:20.4]} 21... Qxg5 {[%clk 0:01:00.7]} 22. Nf3 {[%clk
0:02:19.9]} 22... Qe7 {[%clk 0:00:59.2]} 23. Qd2 {[%clk 0:02:16.1]} 23... Nxe3
{[%clk 0:00:23.5]} 24. Qd4 {[%clk 0:01:44.6]} 24... f6 {[%clk 0:00:23.7]} 25.
Bd2 {[%clk 0:01:36.2]} 25... Nf5 {[%clk 0:00:17.1]} 26. Rxe7 {[%clk 0:01:29.3]}
26... Nxd4 {[%clk 0:00:16.4]} 27. Rxe8+ {[%clk 0:01:29.3]} 27... Rxe8 {[%clk
0:00:14.8]} 28. Bxh6 {[%clk 0:01:30.2]} 28... Nxb3 {[%clk 0:00:13.9]} 29. Rb1
{[%clk 0:01:28.8]} 29... Nc5 {[%clk 0:00:13.9]} 30. Be3 {[%clk 0:01:19.2]} 30...
Bf5 {[%clk 0:00:10]} 31. Rb6 {[%clk 0:01:14.1]} 31... Nxa4 {[%clk 0:00:09.3]}
32. Rxb7 {[%clk 0:01:14.5]} 32... Nc3 {[%clk 0:00:06.6]} 33. Nd4 {[%clk
0:01:13.9]} 33... Bd3 {[%clk 0:00:04.5]} 34. Nxc6 {[%clk 0:01:12.3]} 34... a4
{[%clk 0:00:04.9]} 35. Ne7+ {[%clk 0:01:11.6]} 35... Kh8 {[%clk 0:00:02.1]} 36.
Bd4 {[%clk 0:01:11.2]} 36... Ne2+ {[%clk 0:00:01.4]} 37. Kh2 {[%clk 0:01:10]}
37... Nxd4 {[%clk 0:00:02.3]} 38. Nd5 {[%clk 0:01:05.6]} 38... a3 {[%clk
0:00:02]} 39. Ra7 {[%clk 0:01:05.7]} 1-0

[Event "Late-Titled-Tuesday-Blitz-October-24-2023"]
[Site "Chess.com"]
[Date "2023.10.24"]
[Round "4"]
[White "el_sporco"]
[Black "Thjop"]
[Result "0-1"]
[WhiteElo "2415"]
[BlackElo "2641"]
[TimeControl "180+1"]
[EndTime "14:39:09 PDT"]
[Termination "Thjop won by resignation"]

1. e4 {[%clk 0:02:59.2]} 1... e6 {[%clk 0:03:00.1]} 2. d4 {[%clk 0:02:55.6]}
2... d5 {[%clk 0:03:00]} 3. Nc3 {[%clk 0:02:52.2]} 3... Bb4 {[%clk 0:02:59.6]}
4. exd5 {[%clk 0:02:52.2]} 4... exd5 {[%clk 0:02:59]} 5. Bd3 {[%clk 0:02:50.4]}
5... Nc6 {[%clk 0:02:58.9]} 6. Ne2 {[%clk 0:02:45.1]} 6... Nge7 {[%clk
0:02:56.1]} 7. O-O {[%clk 0:02:44.7]} 7... Bg4 {[%clk 0:02:55.9]} 8. h3 {[%clk
0:02:42.8]} 8... Bh5 {[%clk 0:02:56.2]} 9. Qd2 {[%clk 0:02:39.6]} 9... Bg6
{[%clk 0:02:53.3]} 10. Nf4 {[%clk 0:02:35.5]} 10... Bxd3 {[%clk 0:02:49.7]} 11.
Qxd3 {[%clk 0:02:32.3]} 11... O-O {[%clk 0:02:47]} 12. Nce2 {[%clk 0:02:29.5]}
12... Bd6 {[%clk 0:02:45.5]} 13. Ng3 {[%clk 0:02:19.4]} 13... Qd7 {[%clk
0:02:42.2]} 14. Ngh5 {[%clk 0:02:13.1]} 14... Rae8 {[%clk 0:02:33.4]} 15. Re1
{[%clk 0:01:44]} 15... Nb4 {[%clk 0:02:25.7]} 16. Qg3 {[%clk 0:00:53.3]} 16...
Ng6 {[%clk 0:02:13.7]} 17. Bd2 {[%clk 0:00:33.9]} 17... Nxc2 {[%clk 0:02:09.3]}
18. Rxe8 {[%clk 0:00:32.3]} 18... Rxe8 {[%clk 0:02:10.2]} 19. Rd1 {[%clk
0:00:26]} 19... Nxd4 {[%clk 0:02:06.4]} 20. Bc3 {[%clk 0:00:24.5]} 20... Ne2+
{[%clk 0:02:06.2]} 21. Nxe2 {[%clk 0:00:22.6]} 21... Bxg3 {[%clk 0:02:06]} 22.
Nexg3 {[%clk 0:00:23.1]} 22... Ne5 {[%clk 0:01:39.3]} 23. f4 {[%clk 0:00:22.5]}
23... f6 {[%clk 0:01:24.1]} 24. fxe5 {[%clk 0:00:22]} 24... fxe5 {[%clk
0:01:25]} 25. Rf1 {[%clk 0:00:16.2]} 25... d4 {[%clk 0:01:23]} 26. Bb4 {[%clk
0:00:16.2]} 26... b6 {[%clk 0:01:18.8]} 27. Nf5 {[%clk 0:00:15]} 27... c5 {[%clk
0:01:14.9]} 28. Nfxg7 {[%clk 0:00:15.3]} 28... Rf8 {[%clk 0:01:10.2]} 29. Rxf8+
{[%clk 0:00:07.5]} 29... Kxf8 {[%clk 0:01:11.1]} 30. Bd2 {[%clk 0:00:07.8]}
30... c4 {[%clk 0:01:03.1]} 31. Bh6 {[%clk 0:00:08]} 31... Kf7 {[%clk
0:01:02.4]} 32. g4 {[%clk 0:00:07.3]} 32... c3 {[%clk 0:00:53.8]} 33. bxc3
{[%clk 0:00:07]} 33... dxc3 {[%clk 0:00:53.7]} 34. Nf5 {[%clk 0:00:06.6]} 34...
Qd1+ {[%clk 0:00:52.5]} 35. Kg2 {[%clk 0:00:06.4]} 35... c2 {[%clk 0:00:51.8]}
36. Nhg3 {[%clk 0:00:06.4]} 36... c1=Q {[%clk 0:00:46.5]} 0-1

[Event "Late-Titled-Tuesday-Blitz-October-24-2023"]
[Site "Chess.com"]
[Date "2023.10.24"]
[Round "4"]
[White "aranibos"]
[Black "serefra99"]
[Result "0-1"]
[WhiteElo "2275"]
[BlackElo "2410"]
[TimeControl "180+1"]
[EndTime "14:39:14 PDT"]
[Termination "serefra99 won by resignation"]

1. d4 {[%clk 0:03:00.9]} 1... d5 {[%clk 0:02:59]} 2. Nf3 {[%clk 0:03:00.2]} 2...
Nf6 {[%clk 0:02:57.9]} 3. Bg5 {[%clk 0:02:59.4]} 3... e6 {[%clk 0:02:48.4]} 4.
e3 {[%clk 0:02:59.4]} 4... Be7 {[%clk 0:02:45]} 5. Nbd2 {[%clk 0:02:59.6]} 5...
Nbd7 {[%clk 0:02:44.4]} 6. Bd3 {[%clk 0:02:59.4]} 6... O-O {[%clk 0:02:42.7]} 7.
c3 {[%clk 0:02:59.5]} 7... b6 {[%clk 0:02:42.5]} 8. h4 {[%clk 0:02:54.9]} 8...
Bb7 {[%clk 0:02:41.3]} 9. Qc2 {[%clk 0:02:53.5]} 9... h6 {[%clk 0:02:40.2]} 10.
Bxf6 {[%clk 0:02:52.3]} 10... Nxf6 {[%clk 0:02:34.3]} 11. Ne5 {[%clk 0:02:51.5]}
11... Nd7 {[%clk 0:02:31.3]} 12. Ndf3 {[%clk 0:02:39.2]} 12... c5 {[%clk
0:02:28.2]} 13. Nxd7 {[%clk 0:02:33.2]} 13... Qxd7 {[%clk 0:02:28.2]} 14. Ne5
{[%clk 0:02:33.3]} 14... Qd6 {[%clk 0:02:27.1]} 15. f4 {[%clk 0:02:31]} 15...
Rac8 {[%clk 0:02:22.4]} 16. Qf2 {[%clk 0:02:28.3]} 16... f5 {[%clk 0:02:12.4]}
17. Ng6 {[%clk 0:02:22.8]} 17... Rf6 {[%clk 0:02:11.8]} 18. h5 {[%clk
0:02:20.8]} 18... Bc6 {[%clk 0:02:11.4]} 19. O-O {[%clk 0:02:20.6]} 19... Be8
{[%clk 0:02:10.3]} 20. Nxe7+ {[%clk 0:02:18]} 20... Qxe7 {[%clk 0:02:10]} 21.
Be2 {[%clk 0:02:15]} 21... b5 {[%clk 0:02:04.9]} 22. a3 {[%clk 0:02:12.7]} 22...
a5 {[%clk 0:02:02.8]} 23. Rfc1 {[%clk 0:02:05.7]} 23... b4 {[%clk 0:02:02.8]}
24. cxb4 {[%clk 0:02:05.5]} 24... axb4 {[%clk 0:02:01.9]} 25. axb4 {[%clk
0:02:03.2]} 25... c4 {[%clk 0:02:02.2]} 26. Qh4 {[%clk 0:02:00.5]} 26... Qxb4
{[%clk 0:02:00.3]} 27. Ra7 {[%clk 0:01:57]} 27... Qxb2 {[%clk 0:01:56.1]} 28.
Qe1 {[%clk 0:01:50.7]} 28... Rb8 {[%clk 0:01:46.7]} 29. Bf3 {[%clk 0:01:48.7]}
29... Rf7 {[%clk 0:01:42.6]} 30. Rxf7 {[%clk 0:01:44.1]} 30... Bxf7 {[%clk
0:01:43.5]} 31. Qc3 {[%clk 0:01:38.7]} 31... Qxc3 {[%clk 0:01:42.7]} 32. Rxc3
{[%clk 0:01:39.1]} 32... Be8 {[%clk 0:01:39.2]} 33. g4 {[%clk 0:01:28.5]} 33...
fxg4 {[%clk 0:01:34.9]} 34. Bxg4 {[%clk 0:01:28.7]} 34... Kf7 {[%clk 0:01:30.9]}
35. Kf2 {[%clk 0:01:29.2]} 35... Rb3 {[%clk 0:01:29.9]} 36. Rc2 {[%clk
0:01:23.9]} 36... Kf6 {[%clk 0:01:28.9]} 37. Ke2 {[%clk 0:01:21.8]} 37... c3
{[%clk 0:01:27.3]} 38. Ke1 {[%clk 0:01:12.9]} 38... Bb5 {[%clk 0:01:26.9]} 39.
Be2 {[%clk 0:01:12.8]} 39... Rb2 {[%clk 0:01:21.3]} 40. Bd1 {[%clk 0:00:59.9]}
40... Rxc2 {[%clk 0:01:15]} 41. Bxc2 {[%clk 0:00:59.3]} 41... Be8 {[%clk
0:01:15.6]} 42. Bd1 {[%clk 0:00:46.6]} 42... Bb5 {[%clk 0:01:04.7]} 43. Bf3
{[%clk 0:00:45.2]} 43... Bd3 {[%clk 0:01:04.4]} 44. Kd1 {[%clk 0:00:45.3]} 44...
g5 {[%clk 0:01:01.4]} 45. hxg6 {[%clk 0:00:42.4]} 45... Kxg6 {[%clk 0:01:01.1]}
46. Bg4 {[%clk 0:00:42.5]} 46... Bf5 {[%clk 0:00:57.8]} 47. Bf3 {[%clk
0:00:36.1]} 47... h5 {[%clk 0:00:52.6]} 48. Kc1 {[%clk 0:00:30.7]} 48... h4
{[%clk 0:00:52.8]} 0-1

[Event "Late-Titled-Tuesday-Blitz-October-24-2023"]
[Site "Chess.com"]
[Date "2023.10.24"]
[Round "4"]
[White "HalfIsCrayfish"]
[Black "HanSchut"]
[Result "1-0"]
[WhiteElo "2547"]
[BlackElo "2310"]
[TimeControl "180+1"]
[EndTime "14:39:17 PDT"]
[Termination "HalfIsCrayfish won by resignation"]

1. Nf3 {[%clk 0:03:00.9]} 1... Nf6 {[%clk 0:02:59]} 2. d4 {[%clk 0:02:59.4]}
2... g6 {[%clk 0:02:58.7]} 3. c4 {[%clk 0:02:58.1]} 3... Bg7 {[%clk 0:02:58.7]}
4. Nc3 {[%clk 0:02:55.1]} 4... d5 {[%clk 0:02:59.1]} 5. h4 {[%clk 0:02:50.4]}
5... c5 {[%clk 0:02:57]} 6. cxd5 {[%clk 0:02:38.3]} 6... Nxd5 {[%clk 0:02:55.9]}
7. e3 {[%clk 0:02:36.5]} 7... cxd4 {[%clk 0:02:53.1]} 8. exd4 {[%clk 0:02:34.9]}
8... Nc6 {[%clk 0:02:52.2]} 9. h5 {[%clk 0:02:31.7]} 9... Bg4 {[%clk 0:02:48.1]}
10. Bc4 {[%clk 0:02:27.7]} 10... Nb6 {[%clk 0:02:27.8]} 11. Bxf7+ {[%clk
0:02:21.6]} 11... Kxf7 {[%clk 0:02:27]} 12. Ng5+ {[%clk 0:02:22.1]} 12... Ke8
{[%clk 0:01:51.9]} 13. Qxg4 {[%clk 0:02:23]} 13... Qxd4 {[%clk 0:01:48.5]} 14.
Qe2 {[%clk 0:02:03]} 14... Qe5 {[%clk 0:01:18.7]} 15. Ne6 {[%clk 0:01:53.2]}
15... Qxe2+ {[%clk 0:01:12.5]} 16. Nxe2 {[%clk 0:01:51]} 16... Kf7 {[%clk
0:01:09.7]} 17. Nxg7 {[%clk 0:01:48.1]} 17... Kxg7 {[%clk 0:01:09.7]} 18. b3
{[%clk 0:01:44.4]} 18... e5 {[%clk 0:01:00.6]} 19. Bb2 {[%clk 0:01:42.6]} 19...
Kf7 {[%clk 0:00:57.5]} 20. O-O-O {[%clk 0:01:29.8]} 20... Rhd8 {[%clk
0:00:52.7]} 21. hxg6+ {[%clk 0:01:28.4]} 21... hxg6 {[%clk 0:00:51.2]} 22. Rh7+
{[%clk 0:01:23.5]} 22... Kg8 {[%clk 0:00:46.8]} 23. Rxb7 {[%clk 0:01:23.1]}
23... Rac8 {[%clk 0:00:44.3]} 24. Nc3 {[%clk 0:01:03.7]} 24... Nb4 {[%clk
0:00:28.3]} 25. Rxd8+ {[%clk 0:01:00.9]} 25... Rxd8 {[%clk 0:00:29.2]} 26. Rxa7
{[%clk 0:00:50.8]} 26... Nd3+ {[%clk 0:00:28.9]} 27. Kb1 {[%clk 0:00:51.2]}
27... Nxb2 {[%clk 0:00:29.8]} 28. Kxb2 {[%clk 0:00:51.7]} 28... Rd2+ {[%clk
0:00:30.5]} 29. Kc1 {[%clk 0:00:52]} 29... Rxf2 {[%clk 0:00:31]} 30. a4 {[%clk
0:00:48.3]} 30... Rf1+ {[%clk 0:00:12.1]} 31. Kb2 {[%clk 0:00:45.6]} 31... Rf2+
{[%clk 0:00:12.5]} 32. Ka3 {[%clk 0:00:39.6]} 32... e4 {[%clk 0:00:11]} 33. a5
{[%clk 0:00:36.6]} 33... Rc2 {[%clk 0:00:07.9]} 34. axb6 {[%clk 0:00:35.7]}
34... Rxc3 {[%clk 0:00:08.3]} 35. b7 {[%clk 0:00:36.3]} 1-0

[Event "Late-Titled-Tuesday-Blitz-October-24-2023"]
[Site "Chess.com"]
[Date "2023.10.24"]
[Round "4"]
[White "OK97"]
[Black "stolencandy13"]
[Result "1-0"]
[WhiteElo "2762"]
[BlackElo "2583"]
[TimeControl "180+1"]
[EndTime "14:39:23 PDT"]
[Termination "OK97 won by resignation"]

1. c4 {[%clk 0:03:00.9]} 1... f5 {[%clk 0:02:58.1]} 2. g3 {[%clk 0:02:54.5]}
2... Nf6 {[%clk 0:02:58.1]} 3. Bg2 {[%clk 0:02:55.2]} 3... e5 {[%clk 0:02:56.7]}
4. Nc3 {[%clk 0:02:54.9]} 4... Be7 {[%clk 0:02:56.1]} 5. e3 {[%clk 0:02:47.4]}
5... O-O {[%clk 0:02:56.1]} 6. Nge2 {[%clk 0:02:47.7]} 6... Nc6 {[%clk
0:02:50.6]} 7. d4 {[%clk 0:02:41.4]} 7... d6 {[%clk 0:02:48.9]} 8. Rb1 {[%clk
0:02:37.2]} 8... a5 {[%clk 0:02:48.1]} 9. a3 {[%clk 0:02:36.8]} 9... Kh8 {[%clk
0:02:47]} 10. b4 {[%clk 0:02:35.2]} 10... axb4 {[%clk 0:02:47.9]} 11. axb4
{[%clk 0:02:35.9]} 11... Qe8 {[%clk 0:02:35.6]} 12. b5 {[%clk 0:02:31]} 12...
Na5 {[%clk 0:02:25.3]} 13. c5 {[%clk 0:02:11.9]} 13... exd4 {[%clk 0:02:19]} 14.
cxd6 {[%clk 0:02:09.9]} 14... Bxd6 {[%clk 0:02:10.1]} 15. Nxd4 {[%clk
0:02:07.5]} 15... f4 {[%clk 0:02:08.1]} 16. O-O {[%clk 0:01:59.1]} 16... fxg3
{[%clk 0:02:05.9]} 17. fxg3 {[%clk 0:01:47.1]} 17... Bg4 {[%clk 0:01:58.8]} 18.
Qd3 {[%clk 0:01:42.3]} 18... Qh5 {[%clk 0:01:53.2]} 19. Bd2 {[%clk 0:01:38]}
19... Bd7 {[%clk 0:01:34.3]} 20. Bf3 {[%clk 0:01:14.7]} 20... Ng4 {[%clk
0:01:23.2]} 21. Qe2 {[%clk 0:01:14.4]} 21... Rae8 {[%clk 0:01:13.7]} 22. Ne4
{[%clk 0:01:04.9]} 22... Rxf3 {[%clk 0:00:58.9]} 23. Rxf3 {[%clk 0:01:01.8]}
23... Rxe4 {[%clk 0:00:56.9]} 24. Bxa5 {[%clk 0:01:01.4]} 24... Qg6 {[%clk
0:00:35.3]} 25. Rbf1 {[%clk 0:00:55.7]} 25... h5 {[%clk 0:00:34.7]} 26. Bd2
{[%clk 0:00:46.6]} 26... Bc5 {[%clk 0:00:33.9]} 27. Qc4 {[%clk 0:00:40.8]} 27...
b6 {[%clk 0:00:24.3]} 28. Rf8+ {[%clk 0:00:35.1]} 28... Bxf8 {[%clk 0:00:20.2]}
29. Rxf8+ {[%clk 0:00:36]} 29... Kh7 {[%clk 0:00:20.6]} 30. Qg8+ {[%clk
0:00:36.3]} 30... Kh6 {[%clk 0:00:21.1]} 31. Nf3 {[%clk 0:00:21.8]} 31... Re8
{[%clk 0:00:11.3]} 32. e4+ {[%clk 0:00:18.2]} 1-0

[Event "Late-Titled-Tuesday-Blitz-October-24-2023"]
[Site "Chess.com"]
[Date "2023.10.24"]
[Round "4"]
[White "AndresDelgado77"]
[Black "OPQRC"]
[Result "0-1"]
[WhiteElo "2352"]
[BlackElo "2592"]
[TimeControl "180+1"]
[EndTime "14:39:24 PDT"]
[Termination "OPQRC won on time"]

1. e4 {[%clk 0:03:00.5]} 1... c6 {[%clk 0:02:57.6]} 2. d4 {[%clk 0:02:57.6]}
2... g6 {[%clk 0:02:51.4]} 3. Nc3 {[%clk 0:02:56.5]} 3... Bg7 {[%clk 0:02:50.9]}
4. Nf3 {[%clk 0:02:28.9]} 4... d5 {[%clk 0:02:47.7]} 5. h3 {[%clk 0:02:25.9]}
5... dxe4 {[%clk 0:02:46.5]} 6. Nxe4 {[%clk 0:02:25.7]} 6... Nf6 {[%clk
0:02:47.4]} 7. Nxf6+ {[%clk 0:02:24.7]} 7... exf6 {[%clk 0:02:46.2]} 8. Bc4
{[%clk 0:02:19.8]} 8... O-O {[%clk 0:02:45.4]} 9. O-O {[%clk 0:02:19.7]} 9...
Nd7 {[%clk 0:02:44.7]} 10. Bf4 {[%clk 0:02:15.9]} 10... Nb6 {[%clk 0:02:44.2]}
11. Bd3 {[%clk 0:02:14.5]} 11... Nd5 {[%clk 0:02:44]} 12. Bg3 {[%clk 0:02:11.3]}
12... Be6 {[%clk 0:02:40]} 13. c4 {[%clk 0:02:05.9]} 13... Nb6 {[%clk
0:02:38.7]} 14. b3 {[%clk 0:02:01.6]} 14... Qd7 {[%clk 0:02:35]} 15. a4 {[%clk
0:01:57.7]} 15... a5 {[%clk 0:02:28.5]} 16. Qd2 {[%clk 0:01:54.7]} 16... Rfd8
{[%clk 0:02:18.4]} 17. Rad1 {[%clk 0:01:48.3]} 17... Nc8 {[%clk 0:02:14.6]} 18.
Rfe1 {[%clk 0:01:36.8]} 18... Nd6 {[%clk 0:02:14.4]} 19. Bc2 {[%clk 0:01:04.5]}
19... Bf5 {[%clk 0:01:57.3]} 20. d5 {[%clk 0:00:43.2]} 20... Bxc2 {[%clk
0:01:49.6]} 21. Qxc2 {[%clk 0:00:43]} 21... Nf5 {[%clk 0:01:48]} 22. dxc6 {[%clk
0:00:31.7]} 22... Qxc6 {[%clk 0:01:48.9]} 23. Bf4 {[%clk 0:00:27.7]} 23... Bf8
{[%clk 0:01:34.8]} 24. Rxd8 {[%clk 0:00:25.8]} 24... Rxd8 {[%clk 0:01:33.8]} 25.
Rd1 {[%clk 0:00:25.9]} 25... Re8 {[%clk 0:01:31.9]} 26. Qd2 {[%clk 0:00:24.3]}
26... Bc5 {[%clk 0:01:15.6]} 27. Qd7 {[%clk 0:00:22.2]} 27... Qxd7 {[%clk
0:01:13.6]} 28. Rxd7 {[%clk 0:00:21.7]} 28... Re2 {[%clk 0:01:13.4]} 29. g4
{[%clk 0:00:17.9]} 29... Rxf2 {[%clk 0:01:10.3]} 30. gxf5 {[%clk 0:00:12.9]}
30... Rxf3+ {[%clk 0:01:08.8]} 31. Kg2 {[%clk 0:00:12.9]} 31... Rxf4 {[%clk
0:01:08.8]} 32. Rxb7 {[%clk 0:00:12]} 32... Rxf5 {[%clk 0:01:07.2]} 33. Rb5
{[%clk 0:00:11.5]} 33... Bb4 {[%clk 0:01:04.8]} 34. Rxf5 {[%clk 0:00:10.8]}
34... gxf5 {[%clk 0:01:04.7]} 35. Kf3 {[%clk 0:00:11.2]} 35... Kg7 {[%clk
0:01:04.1]} 36. Kf4 {[%clk 0:00:11.3]} 36... Kg6 {[%clk 0:01:04.5]} 37. h4
{[%clk 0:00:11.5]} 37... h5 {[%clk 0:01:04.4]} 38. Kf3 {[%clk 0:00:10.7]} 38...
Bd6 {[%clk 0:01:03.4]} 39. Ke3 {[%clk 0:00:09.1]} 39... f4+ {[%clk 0:01:03.5]}
40. Ke4 {[%clk 0:00:08.7]} 40... f5+ {[%clk 0:01:03.9]} 41. Kf3 {[%clk 0:00:07]}
41... Kf6 {[%clk 0:01:04.1]} 42. c5 {[%clk 0:00:04.1]} 42... Bxc5 {[%clk
0:01:04.6]} 43. Kxf4 {[%clk 0:00:04.6]} 43... Bd6+ {[%clk 0:01:03.9]} 44. Kf3
{[%clk 0:00:04.6]} 44... Ke5 {[%clk 0:01:04.8]} 45. Ke3 {[%clk 0:00:02.7]} 45...
f4+ {[%clk 0:01:05]} 46. Kf3 {[%clk 0:00:02.8]} 46... Kf5 {[%clk 0:01:05.9]} 0-1